bitfinex-derivatives/quotes_SOLF0:USTF0_20230102
["timestamp","ask_amount","ask_price","bid_price","bid_amount"]
[1672696759583,3.09,11.369,11.366,0.06626712]
[1672696759789,3.09,11.367,11.364,0.06491721]
[1672696760003,3.09,11.365,11.357,3.09]
[1672696760214,3.09,11.364,11.357,3.09]
[1672696760423,5.0,11.363,11.357,3.09]
[1672696761257,3.15367012,11.364,11.357,3.09]
[1672696763257,0.06367012,11.364,11.356,0.0606335]
[1672696772197,0.06367012,11.364,11.357,49.99998393]
[1672696772406,7.012e-05,11.364,11.36,9.24]
[1672696772614,5.0,11.374,11.361,5.0]
[1672696773562,0.06512204,11.371,11.361,5.0]
[1672696773875,0.06512204,11.371,11.364,0.06764014]
[1672696780176,0.06512204,11.371,11.364,5.06764014]
[1672696781227,0.06512204,11.371,11.365,47.7876]
[1672696781438,0.06512204,11.371,11.366,5.0]
[1672696782700,0.06512204,11.371,11.365,47.7876]
[1672696787540,5.0,11.377,11.371,0.09517228]
[1672696789635,5.0,11.377,11.371,7.228e-05]
[1672696790686,5.0,11.377,11.37,0.071289]
[1672696791004,5.0,11.377,11.358,5.0]
[1672696791207,5.0,11.377,11.358,54.99998393]
[1672696791420,9.25,11.376,11.36,51.4808]
[1672696791627,5.0,11.375,11.36,51.4808]
[1672696791949,0.07001469,11.371,11.364,0.06397216]
[1672696792265,0.06646509,11.371,11.364,0.06397216]
[1672696801937,0.06646509,11.371,11.364,0.00397216]
[1672696802147,50.0,11.369,11.364,0.00397216]
[1672696802465,5.0,11.368,11.364,0.00397216]
[1672696803192,0.06646509,11.371,11.364,0.00397216]
[1672696812126,9.25,11.37,11.364,0.00397216]
[1672696812551,5.0,11.369,11.364,0.00397216]
[1672696815704,4.86347053,11.369,11.364,0.00397216]
[1672696818332,54.86347053,11.369,11.354,5.0]
[1672696819378,0.0664401,11.365,11.358,0.06747955]
[1672696819608,0.06728015,11.365,11.358,0.06747955]
[1672696821189,5.0,11.361,11.358,0.06747955]
[1672696821412,5.0,11.361,11.356,0.06639233]
[1672696821621,5.0,11.361,11.355,0.06972733]
[1672696821827,5.0,11.361,11.354,0.07048575]
[1672696823842,6.14,11.359,11.354,0.07048575]
[1672696824184,5.0,11.358,11.354,0.07048575]
[1672696826132,6.14,11.359,11.354,0.07048575]
[1672696826662,6.17,11.356,11.342,49.2899]
[1672696826881,6.15,11.35,11.338,49.99998393]
[1672696827088,6.15,11.35,11.337,6.17]
[1672696827089,5.0,11.349,11.339,5.0]
[1672696827722,0.07089272,11.348,11.34,0.0662784]
[1672696830356,0.07089272,11.348,11.347,56.16998393]
[1672696830557,0.06426915,11.351,11.347,56.16998393]
[1672696830759,0.06486084,11.353,11.348,49.99998393]
[1672696830975,0.06556023,11.354,11.349,5.0]
[1672696831284,0.06907989,11.355,11.348,55.06127407]
[1672696831498,0.06907989,11.355,11.348,0.06129014]
[1672696831702,0.06907989,11.355,11.348,50.06127407]
[1672696833172,0.06907989,11.355,11.348,0.06129014]
[1672696833593,0.06907989,11.355,11.348,50.06127407]
[1672696838205,0.06907989,11.355,11.349,6.17]
[1672696838413,0.06907989,11.355,11.35,5.0]
[1672696838939,5.0,11.362,11.355,0.02275341]
[1672696839673,55.7639,11.363,11.355,0.02275341]
[1672696839877,5.0,11.362,11.355,0.09382548]
[1672696848914,6.23613503,11.363,11.355,0.09382548]
[1672696849336,0.06613503,11.363,11.355,0.09382548]
[1672696850811,6.14,11.365,11.363,0.0740256]
[1672696853224,5.0,11.364,11.36,0.06684144]
[1672696853540,5.0632273,11.368,11.36,0.06684144]
[1672696853752,0.0632273,11.368,11.36,0.06684144]
[1672696854067,0.0632273,11.368,11.36,6.23684144]
[1672696860368,0.0632273,11.368,11.363,6.17]
[1672696862681,0.0632273,11.368,11.36,6.23684144]
[1672696866990,5.0,11.371,11.368,0.11220329]
[1672696867300,5.0,11.37,11.361,5.0]
[1672696867836,5.0,11.37,11.36,6.17]
[1672696868044,0.06934255,11.369,11.361,0.06574806]
[1672696868249,0.06934255,11.369,11.361,5.06574806]
[1672696868567,6.16,11.379,11.369,5.0]
[1672696868775,5.0,11.377,11.369,5.0]
[1672696868979,5.0,11.377,11.365,5.0]
[1672696869611,0.06770226,11.374,11.367,0.06908332]
[1672696879392,5.06770226,11.374,11.367,0.06908332]
[1672696879606,6.14,11.373,11.367,0.06908332]
[1672696879918,5.0,11.372,11.361,6.14]
[1672696880132,6.15,11.367,11.354,6.15]
[1672696880451,5.0,11.366,11.355,5.0]
[1672696880967,0.06849089,11.364,11.357,0.06848891]
[1672696881711,6.22849089,11.364,11.357,0.06848891]
[1672696881920,5.0,11.363,11.357,0.06848891]
[1672696887601,6.16,11.362,11.357,0.06848891]
[1672696887813,11.15,11.361,11.357,0.06848891]
[1672696888024,5.0,11.36,11.357,0.06848891]
[1672696888337,5.0,11.36,11.355,0.06551793]
[1672696888548,5.0,11.36,11.354,0.06127092]
[1672696888753,5.0,11.36,11.353,0.06350968]
[1672696890122,11.21663592,11.361,11.353,0.06350968]
[1672696892330,6.11,11.359,11.353,0.06350968]
[1672696892541,6.15,11.356,11.345,6.1]
[1672696892961,5.0,11.355,11.345,6.1]
[1672696893588,0.063374,11.354,11.346,0.06134255]
[1672696894639,0.063374,11.354,11.346,6.24134255]
[1672696896431,6.18,11.353,11.346,0.06134255]
[1672696896644,5.0,11.352,11.346,0.06134255]
[1672696898739,0.063374,11.354,11.346,6.24134255]
[1672696898960,0.063374,11.354,11.348,6.18]
[1672696900527,6.243374,11.354,11.346,0.06134255]
[1672696901161,5.0,11.353,11.346,0.06134255]
[1672696906522,6.243374,11.354,11.346,0.06134255]
[1672696906727,6.09109882,11.354,11.346,0.06134255]
[1672696906942,11.18,11.355,11.347,6.18]
[1672696907786,11.24345821,11.355,11.347,6.18]
[1672696911675,6.24345821,11.355,11.347,6.18]
[1672696919866,6.13528389,11.355,11.347,6.18]
[1672696933420,6.13,11.352,11.346,0.06134255]
[1672696933636,5.0,11.351,11.346,0.06134255]
[1672696933846,5.0,11.351,11.33,24.71]
[1672696933847,6.13,11.347,11.339,6.18]
[1672696934058,6.13,11.344,11.335,6.18]
[1672696934264,6.13,11.344,11.336,5.0]
[1672696934477,8.09,11.343,11.336,8.1]
[1672696934791,8.09,11.343,11.336,3.1]
[1672696934997,8.15978267,11.343,11.336,3.16508956]
[1672696935951,3.1,11.342,11.336,0.06508956]
[1672696936474,3.1,11.34,11.336,0.06508956]
[1672696940362,8.15978267,11.343,11.336,0.06508956]
[1672696940785,3.15978267,11.343,11.336,0.06508956]
[1672696942262,3.09,11.341,11.336,0.06508956]
[1672696943199,3.09,11.339,11.336,0.06508956]
[1672696943407,3.09,11.338,11.334,0.07051813]
[1672696943621,3.09,11.338,11.332,0.0601869]
[1672696945723,3.1,11.336,11.332,0.0601869]
[1672696946454,3.1,11.335,11.332,0.0601869]
[1672696946671,3.1,11.333,11.33,0.06148172]
[1672696946875,3.1,11.333,11.328,0.06457979]
[1672696947085,3.1,11.333,11.327,5.0]
[1672696947086,3.1,11.333,11.327,5.07141925]
[1672696947395,3.1,11.333,11.327,0.07141925]
[1672696947820,0.10552099,11.327,11.326,3.1]
[1672696948354,3.09,11.338,11.327,5.0]
[1672696948550,3.1,11.341,11.334,3.08]
[1672696948764,3.16978537,11.341,11.334,3.14835621]
[1672696952130,3.1,11.338,11.334,0.06835621]
[1672696955175,3.16978537,11.341,11.334,3.16835621]
[1672696955390,0.06978537,11.341,11.336,3.1]
[1672696956754,0.06978537,11.341,11.339,3.1]
[1672696956962,0.06281953,11.344,11.339,3.1]
[1672696957171,0.06116923,11.345,11.339,3.1]
[1672696957798,0.06116923,11.345,11.338,0.06789185]
[1672696958015,3.1,11.344,11.338,0.06789185]
[1672696959695,3.09,11.343,11.338,0.06789185]
[1672696961372,6.19,11.343,11.338,0.06789185]
[1672696961689,4.89417776,11.342,11.338,0.06789185]
[1672696962640,6.19,11.343,11.338,0.06789185]
[1672696967475,6.17,11.342,11.338,0.06789185]
[1672696967681,5.0,11.341,11.338,0.06789185]
[1672696967997,5.0,11.341,11.336,0.06400435]
[1672696968208,5.0,11.341,11.335,0.06896737]
[1672696968941,6.23173142,11.342,11.335,0.06896737]
[1672696969159,0.06173142,11.342,11.335,6.25896737]
[1672696973567,0.06173142,11.342,11.337,6.19]
[1672696975354,0.06173142,11.342,11.335,0.06896737]
[1672696975355,0.06173142,11.342,11.335,6.19896737]
[1672696976196,6.14,11.344,11.342,0.03912647]
[1672696977978,0.06017323,11.347,11.342,6.22912647]
[1672696979036,0.06017323,11.347,11.342,0.03912647]
[1672696986067,0.06017323,11.347,11.343,6.19]
[1672696986494,0.06017323,11.347,11.342,0.03912647]
[1672696988387,5.0,11.357,11.347,0.05185643]
[1672696988593,6.17,11.348,11.347,0.05185643]
[1672696988911,5.0,11.347,11.342,0.03912647]
[1672696989121,6.19,11.345,11.342,0.03912647]
[1672696989332,11.16,11.344,11.342,0.03912647]
[1672696990486,6.17,11.343,11.342,0.03912647]
[1672696992903,5.0,11.342,11.333,6.14]
[1672696993114,0.06450189,11.341,11.334,0.06102757]
[1672696993324,0.06450189,11.341,11.334,5.06102757]
[1672696994058,0.06450189,11.341,11.334,0.06102757]
[1672696994479,6.20450189,11.341,11.334,0.06102757]
[1672697007085,6.08647662,11.341,11.334,0.06102757]
[1672697008135,6.15180169,11.341,11.334,0.06102757]
[1672697021065,5.99397202,11.341,11.334,0.06102757]
[1672697024222,3.09,11.339,11.334,0.06102757]
[1672697030635,0.06532507,11.341,11.335,3.1]
[1672697030848,0.06532507,11.341,11.336,3.1]
[1672697032000,0.06532507,11.341,11.335,3.08]
[1672697033574,0.06532507,11.341,11.337,3.08]
[1672697033789,3.1,11.348,11.34,3.09]
[1672697033992,12.34,11.36,11.338,54.99998393]
[1672697033993,3.1,11.35,11.342,3.1]
[1672697034203,3.1,11.35,11.343,5.0]
[1672697034940,3.16726029,11.35,11.343,0.06944775]
[1672697041462,0.06726029,11.35,11.344,3.08]
[1672697041777,0.06726029,11.35,11.346,3.1]
[1672697042724,0.06726029,11.35,11.345,3.1]
[1672697044194,3.16726029,11.35,11.343,3.16944775]
[1672697045872,3.16726029,11.35,11.343,0.06944775]
[1672697046087,0.06726029,11.35,11.345,3.1]
[1672697047244,3.1,11.352,11.35,0.01480173]
[1672697061111,3.02151559,11.352,11.35,0.01480173]
[1672697070046,3.1,11.353,11.35,0.01480173]
[1672697071519,3.1,11.354,11.35,0.01480173]
[1672697080556,3.1,11.353,11.35,0.01480173]
[1672697087382,3.1,11.353,11.347,0.06278037]
[1672697087597,3.1,11.348,11.336,3.09]
[1672697087807,3.1,11.344,11.336,3.09]
[1672697088644,3.16124722,11.344,11.336,3.15537352]
[1672697089068,0.06124722,11.344,11.338,3.1]
[1672697101780,3.1,11.345,11.344,0.04210306]
[1672697105248,5.1226398,11.344,11.341,0.07046138]
[1672697105458,5.1226398,11.344,11.339,0.06927103]
[1672697107769,0.1226398,11.344,11.339,0.06927103]
[1672697116076,0.1226398,11.344,11.341,3.1]
[1672697116279,3.1,11.351,11.343,3.1]
[1672697116491,3.1,11.351,11.344,5.0]
[1672697117224,3.16311179,11.351,11.344,5.06429545]
[1672697120483,3.16311179,11.351,11.344,0.06429545]
[1672697123741,0.06311179,11.351,11.346,3.1]
[1672697123950,0.06311179,11.351,11.347,3.08]
[1672697129520,3.1,11.354,11.351,0.11615005]
[1672697131938,3.1,11.354,11.351,5.005e-05]
[1672697132254,5.0,11.353,11.349,0.06307316]
[1672697134462,3.1,11.354,11.349,0.06307316]
[1672697135721,3.1,11.351,11.344,3.08]
[1672697136454,3.09,11.349,11.342,3.1]
[1672697136660,3.15964541,11.349,11.342,3.16824964]
[1672697140448,50.2092,11.357,11.348,53.08998393]
[1672697140657,3.1,11.359,11.352,3.1]
[1672697141499,3.1,11.357,11.352,0.06105071]
[1672697145176,3.1,11.353,11.352,0.06105071]
[1672697145386,3.1,11.353,11.349,0.07096721]
[1672697145590,3.1,11.353,11.347,5.06999584]
[1672697145807,3.1,11.353,11.347,0.06999584]
[1672697162415,575.0,11.358,11.351,3.08]
[1672697162416,3.1,11.358,11.351,3.08]
[1672697162731,5.0,11.367,11.353,5.0]
[1672697162732,3.09,11.359,11.353,5.0]
[1672697165674,3.09,11.359,11.352,3.16271147]
[1672697166304,0.06862221,11.36,11.354,3.08]
[1672697171664,0.06862221,11.36,11.356,3.08]
[1672697174085,3.16862221,11.36,11.353,3.08]
[1672697175345,3.1,11.359,11.352,3.16271147]
[1672697175557,3.1,11.357,11.352,0.06271147]
[1672697189943,3.09,11.356,11.352,0.06271147]
[1672697202462,3.1,11.358,11.352,3.16271147]
[1672697211599,3.1,11.357,11.352,0.06271147]
[1672697214438,3.1,11.358,11.352,3.16271147]
[1672697228515,0.06862221,11.36,11.354,3.1]
[1672697235874,0.06862221,11.36,11.352,0.06271147]
[1672697235875,2.221e-05,11.36,11.359,3.1]
[1672697236084,3.09,11.366,11.359,8.1]
[1672697236811,3.15691345,11.366,11.359,8.1679889]
[1672697237656,3.1,11.364,11.359,0.0679889]
[1672697237870,5.0,11.363,11.359,0.0679889]
[1672697238500,3.1,11.364,11.359,0.0679889]
[1672697241125,0.06691345,11.366,11.36,3.1]
[1672697241967,0.06691345,11.366,11.361,3.09]
[1672697242180,0.06691345,11.366,11.362,5.0]
[1672697243230,0.06691345,11.366,11.361,3.09]
[1672697249641,3.1,11.368,11.366,0.13698554]
[1672697250480,3.1,11.368,11.366,8.554e-05]
[1672697261092,5.0,11.366,11.357,3.1]
[1672697261297,3.1,11.365,11.357,3.1]
[1672697261512,5.0,11.364,11.357,3.1]
[1672697261932,5.0,11.364,11.357,3.16028576]
[1672697262145,5.06499526,11.364,11.357,3.16028576]
[1672697262669,0.06499526,11.364,11.357,3.16028576]
[1672697263825,0.06499526,11.364,11.359,3.1]
[1672697268551,0.06499526,11.364,11.358,3.1]
[1672697280007,3.1,11.363,11.357,0.06028576]
[1672697283047,0.06499526,11.364,11.357,0.06028576]
[1672697283267,3.1,11.36,11.357,0.06028576]
[1672697283578,3.1,11.36,11.355,0.06076783]
[1672697283789,3.1,11.36,11.354,0.06835512]
[1672697288622,3.1,11.358,11.354,0.06835512]
[1672697289255,3.1,11.357,11.354,0.06835512]
[1672697289464,3.1,11.357,11.352,0.06529351]
[1672697299131,0.06949188,11.358,11.346,3.1]
[1672697299132,3.1,11.353,11.346,3.1]
[1672697299345,3.1,11.352,11.344,3.09]
[1672697300184,3.17072378,11.352,11.344,3.15133137]
[1672697300397,3.1,11.35,11.344,0.06133137]
[1672697306913,3.09,11.348,11.344,0.06133137]
[1672697309756,0.07072378,11.352,11.344,0.06133137]
[1672697309757,3.1,11.347,11.344,0.06133137]
[1672697309959,3.1,11.347,11.342,0.06180483]
[1672697310174,3.1,11.347,11.341,0.06869002]
[1672697317531,3.1,11.343,11.341,0.06869002]
[1672697317741,5.0,11.342,11.338,0.06572936]
[1672697318059,8.09,11.342,11.336,0.06225303]
[1672697319949,3.09,11.342,11.336,0.06225303]
[1672697326364,3.1,11.338,11.331,3.09]
[1672697327204,3.1,11.339,11.332,3.1]
[1672697327414,3.16577189,11.339,11.333,5.0]
[1672697327728,3.16577189,11.339,11.332,3.16942434]
[1672697328782,0.06577189,11.339,11.333,3.1]
[1672697332350,3.1,11.337,11.332,0.06942434]
[1672697334349,3.09,11.338,11.332,0.06942434]
[1672697338867,3.1,11.337,11.332,0.06942434]
[1672697339499,2.94088666,11.337,11.332,0.06942434]
[1672697345067,3.1,11.333,11.319,3.09]
[1672697345380,3.09,11.325,11.32,5.0]
[1672697345590,5.0,11.324,11.32,5.0]
[1672697345803,5.0,11.324,11.318,53.07998393]
[1672697346014,5.0,11.324,11.318,3.08]
[1672697346325,5.0,11.324,11.318,53.07998393]
[1672697346536,3.15864191,11.325,11.318,53.07998393]
[1672697350005,0.06864191,11.325,11.319,3.09]
[1672697350215,0.06864191,11.325,11.32,5.0]
[1672697352522,0.06864191,11.325,11.319,8.09]
[1672697352844,0.06864191,11.325,11.319,3.09]
[1672697358537,3.1,11.324,11.318,49.99998393]
[1672697359486,3.1,11.323,11.318,49.99998393]
[1672697362631,3.1,11.323,11.317,0.06613787]
[1672697362944,3.1,11.323,11.318,49.99998393]
[1672697364626,3.1,11.323,11.317,0.06613787]
[1672697364840,3.1,11.321,11.317,0.06613787]
[1672697371021,3.16864191,11.325,11.319,5.0]
[1672697372179,3.16864191,11.325,11.318,53.07998393]
[1672697372602,3.16864191,11.325,11.318,3.08]
[1672697372917,3.1,11.324,11.317,3.15613787]
[1672697373118,3.1,11.32,11.317,0.06613787]
[1672697373332,3.1,11.32,11.315,0.06751316]
[1672697373546,3.1,11.32,11.314,0.07141548]
[1672697374803,3.1,11.321,11.314,3.15141548]
[1672697376906,0.0685939,11.322,11.315,3.1]
[1672697379431,0.0685939,11.322,11.314,6.27141548]
[1672697384050,0.0685939,11.322,11.315,5.0]
[1672697384370,0.0685939,11.322,11.318,49.99998393]
[1672697384580,0.0685939,11.322,11.319,5.0]
[1672697384893,0.0617716,11.324,11.319,5.0]
[1672697385107,5.07105074,11.325,11.318,49.99998393]
[1672697385316,5.07105074,11.325,11.317,6.22052705]
[1672697386158,11.25105074,11.325,11.317,0.06052705]
[1672697387733,6.25105074,11.325,11.318,49.99998393]
[1672697388989,6.25105074,11.325,11.319,5.0]
[1672697389518,6.25105074,11.325,11.317,0.06052705]
[1672697390144,6.25105074,11.325,11.318,49.99998393]
[1672697392453,6.25105074,11.325,11.317,0.06052705]
[1672697394667,5.0,11.322,11.317,0.06052705]
[1672697395928,6.18,11.323,11.317,0.06052705]
[1672697405380,6.21,11.321,11.312,6.21]
[1672697405596,6.18,11.318,11.31,5.0]
[1672697406123,6.18,11.318,11.309,59.059]
[1672697406327,5.0,11.317,11.309,6.21]
[1672697406541,5.07079077,11.317,11.31,5.06290427]
[1672697406752,5.07079077,11.317,11.31,0.06290427]
[1672697408644,0.07079077,11.317,11.31,0.06290427]
[1672697410853,3.18079077,11.317,11.31,3.15290427]
[1672697418632,3.04392131,11.317,11.31,3.15290427]
[1672697419680,3.1117672,11.317,11.31,3.15290427]
[1672697425878,0.06784589,11.317,11.312,3.1]
[1672697426191,0.06784589,11.317,11.313,5.0]
[1672697428400,0.06784589,11.317,11.312,3.1]
[1672697432707,3.11,11.32,11.317,0.12254436]
[1672697433550,3.11,11.327,11.319,3.09]
[1672697433759,3.11,11.327,11.32,5.0]
[1672697433963,3.17940452,11.327,11.32,5.0]
[1672697434700,3.17940452,11.327,11.319,8.15259513]
[1672697435437,3.11,11.326,11.319,0.06259513]
[1672697446051,2.99110209,11.326,11.319,5.06259513]
[1672697447943,2.99110209,11.326,11.319,0.06259513]
[1672697459176,2.81108672,11.326,11.319,0.06259513]
[1672697470002,3.17940452,11.327,11.319,3.17259513]
[1672697473364,3.08663051,11.327,11.32,5.0]
[1672697474312,3.15380234,11.327,11.32,5.0]
[1672697475047,3.15380234,11.327,11.319,3.17259513]
[1672697479883,0.06717183,11.327,11.319,3.17259513]
[1672697482194,3.11,11.325,11.319,0.06259513]
[1672697482407,5.0,11.324,11.319,0.06259513]
[1672697486714,3.11,11.325,11.319,0.06259513]
[1672697495224,0.08062132,11.319,11.318,3.11]
[1672697497112,2.132e-05,11.319,11.318,3.11]
[1672697497329,0.06624951,11.322,11.319,5.0]
[1672697497536,0.06668512,11.324,11.319,8.09]
[1672697497748,0.06736404,11.325,11.319,8.09]
[1672697499637,0.06736404,11.325,11.319,3.09]
[1672697509516,0.06736404,11.325,11.32,3.09]
[1672697509937,3.17736404,11.325,11.319,3.11]
[1672697510149,3.04369865,11.325,11.319,3.11]
[1672697520028,3.11,11.324,11.319,3.11]
[1672697521602,0.06595927,11.326,11.318,0.06022195]
[1672697521603,3.11,11.322,11.318,0.06022195]
[1672697522655,3.11,11.324,11.319,3.09]
[1672697522966,3.11,11.324,11.32,5.0]
[1672697523178,3.11,11.324,11.319,8.09]
[1672697523703,2.91185822,11.324,11.319,8.09]
[1672697525911,2.91185822,11.324,11.319,3.09]
[1672697534529,0.06595927,11.326,11.321,3.09]
[1672697534739,0.06595927,11.326,11.322,5.0]
[1672697536315,0.06595927,11.326,11.321,3.09]
[1672697537573,3.11,11.327,11.326,0.04711428]
[1672697553757,2.91442634,11.327,11.326,0.04711428]
[1672697560062,3.11,11.328,11.326,0.04711428]
[1672697569956,3.08,11.328,11.326,0.04711428]
[1672697570257,5.0,11.327,11.326,0.04711428]
[1672697570776,3.08,11.328,11.326,0.04711428]
[1672697575303,0.06277038,11.33,11.326,0.04711428]
[1672697575615,0.1852582,11.326,11.325,3.11]
[1672697576351,0.06277038,11.33,11.326,5.0]
[1672697577185,0.06277038,11.33,11.325,3.11]
[1672697579608,0.06277038,11.33,11.327,3.09]
[1672697579820,3.14770234,11.332,11.327,3.09]
[1672697590011,3.11,11.331,11.326,3.15792926]
[1672697590647,2.8858423,11.331,11.326,3.15792926]
[1672697599888,3.17770234,11.332,11.327,3.09]
[1672697604621,3.0672897,11.332,11.327,3.09]
[1672697606724,3.0672897,11.332,11.327,2.88459326]
[1672697609668,3.08,11.337,11.331,3.11]
[1672697609982,3.08,11.337,11.332,5.0]
[1672697610614,3.11,11.336,11.331,3.16951926]
[1672697610929,3.11,11.336,11.331,3.1]
[1672697611978,0.06099754,11.337,11.333,3.09]
[1672697613450,0.06099754,11.337,11.335,3.11]
[1672697613661,3.17998031,11.34,11.336,5.0]
[1672697614706,3.17998031,11.34,11.335,3.11]
[1672697619124,0.06998031,11.34,11.334,0.06135069]
[1672697623120,3.1,11.341,11.34,0.10964249]
[1672697623434,5.0,11.34,11.335,5.0]
[1672697623748,5.0,11.34,11.333,3.1]
[1672697624166,5.06719738,11.34,11.333,3.1707058]
[1672697624378,0.06719738,11.34,11.333,3.1707058]
[1672697638042,3.1,11.338,11.333,0.0707058]
[1672697638359,3.1,11.336,11.333,0.0707058]
[1672697638568,3.1,11.336,11.331,0.06225041]
[1672697638883,3.1,11.336,11.33,5.06035856]
[1672697640143,3.1,11.336,11.33,0.06035856]
[1672697640673,0.06765471,11.337,11.332,3.1]
[1672697642979,0.06765471,11.337,11.331,3.1]
[1672697648236,0.06765471,11.337,11.332,3.1]
[1672697664209,0.06765471,11.337,11.333,3.1]
[1672697669885,3.13765471,11.337,11.332,3.09]
[1672697679244,0.06765471,11.337,11.331,3.08]
[1672697679979,3.14765471,11.337,11.33,3.13035856]
[1672697689855,0.06765471,11.337,11.331,3.08]
[1672697700693,3.1,11.341,11.337,0.10482274]
[1672697702579,3.07,11.342,11.337,0.10482274]
[1672697703315,3.07,11.347,11.339,3.1]
[1672697704471,3.13396867,11.347,11.339,3.16265429]
[1672697705522,0.06396867,11.347,11.341,3.1]
[1672697706469,0.06396867,11.347,11.342,3.1]
[1672697707834,0.06396867,11.347,11.341,3.1]
[1672697710565,0.06396867,11.347,11.343,3.08]
[1672697711724,3.07,11.355,11.346,3.1]
[1672697711929,3.1,11.36,11.352,3.1]
[1672697712774,3.16741179,11.36,11.352,3.17008142]
[1672697713510,3.1,11.358,11.352,0.07008142]
[1672697714350,3.1,11.358,11.352,8.142e-05]
[1672697714560,3.08,11.353,11.338,51.9646]
[1672697714773,3.08,11.346,11.338,51.9646]
[1672697715506,0.06357936,11.346,11.34,3.08]
[1672697719504,0.06357936,11.346,11.341,3.1]
[1672697721391,7.936e-05,11.346,11.345,49.99998393]
[1672697721607,48.4315,11.363,11.345,53.09998393]
[1672697721819,3.07,11.356,11.348,3.08]
[1672697722446,3.07,11.356,11.348,3.14169229]
[1672697722651,3.1355582,11.356,11.348,3.14169229]
[1672697724539,3.1355582,11.356,11.348,0.06169229]
[1672697724756,3.08,11.358,11.35,3.1]
[1672697725071,3.07,11.357,11.349,3.1]
[1672697725386,3.1,11.355,11.348,3.08]
[1672697725909,3.16106397,11.355,11.348,3.14865043]
[1672697726750,65.97,11.369,11.348,3.14865043]
[1672697726751,12.41,11.37,11.351,3.08]
[1672697726962,3.1,11.363,11.357,49.99998393]
[1672697727172,3.08,11.362,11.357,49.99998393]
[1672697727382,3.07,11.359,11.356,49.99998393]
[1672697727588,3.1,11.357,11.356,49.99998393]
[1672697728538,3.08,11.359,11.356,49.99998393]
[1672697728743,65.93,11.375,11.356,49.99998393]
[1672697728744,818.59236418,11.415,11.358,46.48]
[1672697728960,818.59236418,11.429,11.386,49.91054212]
[1672697729275,3.12,11.42,11.338,66.15]
[1672697729484,50.0,11.406,11.375,49.91054212]
[1672697729690,3.08,11.401,11.391,3.08]
[1672697729904,3.08,11.392,11.38,3.07]
[1672697730114,3.1,11.393,11.384,3.1]
[1672697730429,3.1,11.399,11.39,3.08]
[1672697730636,50.0,11.407,11.38,12.4]
[1672697730849,49.9899,11.409,11.38,12.4]
[1672697730850,3.08,11.404,11.395,3.08]
[1672697731062,31.0,11.42,11.397,3.1]
[1672697731063,0.06443551,11.403,11.397,3.1]
[1672697731376,3.16565463,11.404,11.396,0.06200983]
[1672697731587,3.1,11.403,11.396,0.06200983]
[1672697732003,3.08,11.401,11.396,0.06200983]
[1672697732428,3.1,11.399,11.396,0.06200983]
[1672697732638,3.08,11.397,11.394,0.06299098]
[1672697732849,3.08,11.397,11.392,0.06105999]
[1672697733164,3.08,11.397,11.391,0.06345435]
[1672697734106,3.07,11.394,11.391,0.06345435]
[1672697734427,3.1,11.392,11.389,0.06000718]
[1672697734638,3.1,11.392,11.387,0.07052308]
[1672697734844,3.1,11.392,11.386,0.06683731]
[1672697735162,3.17016815,11.394,11.386,3.16683731]
[1672697735897,3.08,11.392,11.386,0.06683731]
[1672697737686,3.1,11.391,11.386,0.06683731]
[1672697738420,3.08,11.389,11.386,0.06683731]
[1672697738622,3.08,11.389,11.384,0.06522724]
[1672697738836,3.08,11.389,11.383,0.06137222]
[1672697739155,3.08,11.387,11.383,0.06137222]
[1672697739571,3.1,11.388,11.383,0.06137222]
[1672697739787,3.08,11.39,11.383,0.06137222]